Cogmind - Beta 15 *** ADVENTURER MODE // 2025.06.19 @ 12:02:23 // Winter2019/RPGLIKE Player: H_ Result: Self-destructed Performance ------------- Evolutions (0) 0 Regions Visited (4) 800 Robots Destroyed (53) 265 Value Destroyed (1479) 1479 Prototype IDs (14) 280 Alien Tech Used (0) 0 Bonus (204) 204 TOTAL SCORE: 3028 Bonus ------- Follower Combat Kills 220 Friendly Fire -16 Cogmind --------- Core Integrity 456/600 Matter 290/300 Energy 158/170 System Corruption 0% Temperature Cool (0) Movement Walking (115) Location -8/Recycling Parts ------- > --- POWER (1) -------- Makeshift Power Source > --- PROPULSION (3+2) - Makeshift Leg (+) Arachnoskeleton > --- UTILITY (6) ------ Light Humpback Structural Scanner Signal Interpreter Seismic Detector > --- WEAPON (3) ------- Riot Gun Makeshift Hammer Ripper > --- INVENTORY (23) --- Subdweller Power Source Subdweller Monowheel Subdweller Optics Scrap Shield Beam Rifle Subdweller Laser Subdweller Machine Gun Barrage Gun Subdweller Shrapnel Launcher Peak State ------------ > --- POWER ------------ Makeshift Power Source > --- PROPULSION ------- Makeshift Leg Arachnoskeleton Surge Thruster > --- UTILITY ---------- Light Humpback Structural Scanner Signal Interpreter Seismic Detector > --- WEAPON ----------- Riot Gun Makeshift Hammer Ripper > --- INVENTORY -------- Subdweller Power Source Subdweller Monowheel Subdweller Optics Scrap Shield Beam Rifle Subdweller Laser Subdweller Machine Gun Barrage Gun Subdweller Shrapnel Launcher [Rating: 50] Favorites ----------- Power Makeshift Power Source Engine Makeshift Power Source Power Core Light Nuclear Core Propulsion Light Treads Treads Light Treads Leg Arachnoskeleton Flight Unit Surge Thruster Utility Seismic Detector Device Seismic Detector Storage Light Humpback Processor Signal Interpreter Protection Scrap Shield Weapon Subdweller Machine Gun Energy Gun Beam Rifle Energy Cannon Subdweller Beam Cannon Ballistic Gun Subdweller Machine Gun Launcher Subdweller Shrapnel Launcher Special Weapon Flamer Impact Weapon Makeshift Hammer Slashing Weapon Ripper Build | -11 -10 -10 -10 -8 ------- Run | Yrd Mat Min Sub Rec Slots Evolved 9 | 4 1 . 2 2 Power . | . . . . . Propulsion 2 | 1 . . . 1 Utility 5 | 2 . . 2 1 Weapon 2 | 1 1 . . . Parts Attached 39 | 7 4 3 22 3 Power 3 | 1 1 . 1 . Engine 2 | 1 . . 1 . Core 1 | . 1 . . . Reactor . | . . . . . Propulsion 7 | 2 . . 2 3 Treads 4 | 2 . . 2 . Leg 2 | . . . . 2 Wheel . | . . . . . Hover . | . . . . . Flight 1 | . . . . 1 Utility 8 | 2 2 2 2 . Device 4 | 2 . 2 . . Storage 1 | . . . 1 . Processor 2 | . 2 . . . Hackware . | . . . . . Protection 1 | . . . 1 . Artifact . | . . . . . Weapon 21 | 2 1 1 17 . Energy Gun 3 | . . . 3 . Energy Cannon 1 | . . . 1 . Ballistic Gun 12 | 2 1 1 8 . Ballistic Cannon . | . . . . . Launcher 1 | . . . 1 . Special Weapon 1 | . . . 1 . Impact Weapon 1 | . . . 1 . Slashing Weapon 2 | . . . 2 . Piercing Weapon . | . . . . . Special Melee Weapon . | . . . . . Unidentified Prototypes 1 | . . 1 . . Parts Lost . | . . . . . Power . | . . . . . Propulsion . | . . . . . Utility . | . . . . . Weapon . | . . . . . Highest Loss Streak . | . . . . . To Critical Strikes . | . . . . . Average Backups 4 | . . 1 5 9 Power . | . . . . 1 Propulsion 1 | . . . 2 1 Utility 1 | . . . 1 2 Weapon 1 | . . 1 1 5 Tool/Special . | . . . . . Unused Backups 16 | . . 2 9 5 Power 2 | . . . 1 1 Propulsion 4 | . . . 3 1 Utility 4 | . . . 3 1 Weapon 6 | . . 2 2 2 Tool/Special . | . . . . . Average Slot Usage (%) 92 | . 98 99 90 65 Engine 6 | . 3 . 7 6 Core 3 | . 8 11 1 . Treads 19 | . 24 22 18 2 Device 19 | . 24 21 18 12 Storage 3 | . . . 4 6 Processor 9 | . 10 11 9 6 Protection 1 | . . . 2 . Energy Gun 5 | . . . 7 6 Ballistic Gun 17 | . 26 33 13 3 Slashing Weapon 2 | . . . 2 3 Peak Build Rating 50 | 9 13 21 30 50 Average Rating 18 | 5 12 14 20 44 On Entrance 11 | . 9 13 11 26 Naked Turns . | . . . . . Heaviest Build 60 | 11 12 12 60 60 Greatest Support 70 | 40 40 40 40 70 Greatest Overweight (x) 1 | 1 . . 1 1 Average Overweight (x) . | . . . . . Largest Inventory Capacity 23 | 3 3 3 23 23 Average Capacity 10 | 3 3 3 13 23 Most Carried 23 | 3 3 3 23 16 Average Carried 5 | . . 1 7 10 Final Capacity 23 | 3 3 3 23 23 Final Carried 16 | . 3 1 16 10 Class Distribution -------------------- 26% | Scavenger-Skirmisher 23% | Hauler-Assassin 18% | Subdweller-Skirmisher 9% | Hauler-Skirmisher 7% | Mutant 4% | Skirmisher 3% | Hauler-Gladiator 3% | Scavenger-Mutant Dominant Class ---------------- Mutant | -10/Materials Scavenger-Skirmisher | -10/Mines Hauler-Assassin | -10/Subcaves Hauler-Gladiator | -8/Recycling Resources | -11 -10 -10 -10 -8 ----------- Run | Yrd Mat Min Sub Rec Matter Collected 1690 | 305 301 201 703 180 Remotely . | . . . . . Salvage Created 1858 | 157 468 137 861 235 Parts 114 | 9 32 17 47 9 Haulers Intercepted . | . . . . . Recyclers Shooed . | . . . . . Parts Field Recycled . | . . . . . Retrieved Matter . | . . . . . Parts Self-Destructed 15 | . . . 15 . Prevented . | . . . . . Kills | -11 -10 -10 -10 -8 ------- Run | Yrd Mat Min Sub Rec Combat Hostiles Destroyed 46 | . 15 11 18 2 Melee 3 | . . . 1 2 Guns 42 | . 15 11 16 . Cannons 1 | . . . 1 . Classes Destroyed 11 | 2 3 3 2 1 Worker 1 | . . 1 . . Tunneler 3 | 3 . . . . Recycler 2 | 1 . . . 1 Watcher 3 | . 3 . . . Swarmer 11 | . 3 3 5 . Grunt 18 | . 12 5 1 . Sentry 2 | . . . . 2 Demolisher 1 | . . 1 . . Cobbler 2 | . . . 2 . Subdweller 12 | . . . 12 . Assembled 2 | . . 2 . . Best Kill Streak 5 | 2 4 5 3 3 Combat Bots Only 4 | . 4 4 3 2 Max Kills in Single Turn 2 | 1 2 1 2 1 Gunslinging 1 | . 1 . 1 . Exploded . | . . . . . Melee 1 | . . . 1 1 Uniques/NPCs Destroyed . | . . . . . Combat | -11 -10 -10 -10 -8 -------- Run | Yrd Mat Min Sub Rec Hostile Shots Fired 198 | . 79 43 70 6 Missed 43 | . 20 7 15 1 Hits 155 | . 59 36 55 5 Projectile 155 | . 59 36 55 5 Critical Strikes 1 | . . . . 1 Damage Taken 1866 | . 481 297 1030 58 Core 1355 | . 385 237 689 44 Absorbed by Shields . | . . . . . Redirected to Core 1132 | . 294 182 612 44 Ignored by Resistances 518 | . 149 92 261 16 Core Remaining (%) 100 | 100 . . . . Volleys Fired 182 | 6 45 28 103 . Largest 3 | 2 2 3 3 . Hottest 160 | 40 40 60 160 . Shots Fired 448 | 12 90 84 262 . Gun 427 | 12 90 84 241 . Cannon 9 | . . . 9 . Launcher 8 | . . . 8 . Special 4 | . . . 4 . Kinetic 384 | 12 90 84 198 . Thermal 61 | . . . 61 . Explosive . | . . . . . Electromagnetic 3 | . . . 3 . Robot Hit Streak 28 | 4 15 28 17 . Robot Miss Streak 4 | 1 2 4 2 . Penetration Max . | . . . . . Secondary Targets 12 | . 7 3 2 . Max Gunslinging Chain 1 | . 1 1 1 . Shots Hit Robots 261 | 8 70 60 118 5 Core Hits 106 | 5 30 21 47 3 Critical Kills 2 | . . 1 1 . Critical Parts Destroyed . | . . . . . Critical Strikes 5 | . . 1 4 . Burn 2 | . . . 2 . Meltdown 1 | . . . 1 . Destroy 2 | . . 1 1 . Melee Attacks 15 | . . . 9 6 Impact 2 | . . . . 2 Slashing 13 | . . . 9 4 Piercing . | . . . . . Sneak Attacks 2 | . . . . 2 Combat Hostiles 1 | . . . . 1 Follow-up Attacks 1 | . . . . 1 Damage Inflicted 3700 | 101 860 613 1843 283 Guns 3169 | 101 860 613 1595 . Cannons 167 | . . . 167 . Explosions . | . . . . . Melee 320 | . . . 37 283 Ramming . | . . . . . Kinetic 2986 | 101 860 613 1412 . Thermal 362 | . . . 362 . Explosive . | . . . . . Electromagnetic 32 | . . . 32 . Impact 34 | . . . . 34 Slashing 286 | . . . 37 249 Piercing . | . . . . . Highest Corruption . | . . . . . Average Corruption . | . . . . . Corruption Purged . | . . . . . Corruption Blocked . | . . . . . Overload Shots . | . . . . . Overflow Damage . | . . . . . Projectiles . | . . . . . Explosions . | . . . . . Melee . | . . . . . Knockbacks . | . . . . . Impact . | . . . . . Kinetic . | . . . . . Secondary . | . . . . . Self-Inflicted Damage 37 | . . . 37 . Shots 2 | . . . 2 . Rammed . | . . . . . Targets Rammed . | . . . . . Kicked . | . . . . . Crushed . | . . . . . Highest Temperature 156 | . 18 156 72 . Average Temperature 38 | . 5 51 29 . Received Heat Transfer 681 | . 285 159 201 36 Siege Activations . | . . . . . Martial Activations . | . . . . . Shielding Activations . | . . . . . Robots Disrupted . | . . . . . Combat Hostiles . | . . . . . Robots Corrupted . | . . . . . Combat Hostiles . | . . . . . Parts Fried . | . . . . . Impact Corruptions . | . . . . . Robots Melted 1 | . . . 1 . Combat Hostiles 1 | . . . 1 . Parts Melted 5 | . . . 5 . Heat Transferred 1048 | . . . 1048 . Parts Sabotaged . | . . . . . Parts Stolen . | . . . . . Parts Stripped . | . . . . . Power Chain Reactions . | . . . . . Alert | -11 -10 -10 -10 -8 ------- Run | Yrd Mat Min Sub Rec Maximum Alert Level . | . . . . . Low Security (%) 100 | 100 100 100 . 100 Level 1 . | . . . . . Level 2 . | . . . . . Level 3 . | . . . . . Level 4 . | . . . . . Level 5 . | . . . . . High Security . | . . . . . Max Security . | . . . . . Peak Influence 115 | 10 115 86 . 86 Initial . | . . . . . Average 22 | 2 36 13 . 26 Influence Increases 1016 | 20 477 232 181 106 Destroy 0b10 Robot/C 680 | . 300 180 160 40 Destroy 0b10 Robot/NC 45 | 20 15 5 . 5 Destroy Leader 106 | . 56 30 20 . Allied During Kill 3 | . . 2 1 . Successful Hack 16 | . 15 . . 1 Select Force Hacks 120 | . 60 . . 60 Destroy Structure 1 | . 1 . . . Lose Combat Pursuer 45 | . 30 15 . . Influence Decreases 930 | 20 477 232 181 20 Time Decay 815 | 20 362 232 181 20 Purge Threat 115 | . 115 . . . Squads Dispatched 3 | . 2 1 . . Investigation 2 | . 2 . . . Extermination . | . . . . . Reinforcement . | . . . . . Assault 1 | . . 1 . . Garrison . | . . . . . Intercept . | . . . . . Searches Triggered . | . . . . . Construction Impeded . | . . . . . Haulers Reinforced . | . . . . . Active Scanning Responses . | . . . . . Cargo Convoy Interrupts . | . . . . . Stealth | -11 -10 -10 -10 -8 --------- Run | Yrd Mat Min Sub Rec Distress Signals 1 | . 1 . . . Communications Jammed . | . . . . . Distress Signals . | . . . . . Times Spotted 62 | . 21 13 26 2 Peak Tracking Total 4 | . 4 4 3 1 Tactical Retreats 2 | . 1 1 . . Traps | -11 -10 -10 -10 -8 ------- Run | Yrd Mat Min Sub Rec Traps Triggered 4 | . . . 4 . Indirectly . | . . . . . Trap Hack Attempts . | . . . . . Triggered . | . . . . . Disarmed . | . . . . . Reprogrammed . | . . . . . Reused . | . . . . . Traps Extracted . | . . . . . Installed 1 | . . . 1 . Triggered . | . . . . . Machines | -11 -10 -10 -10 -8 ---------- Run | Yrd Mat Min Sub Rec Machines Disabled 1 | . . . 1 . Max in Single Turn 1 | . . . 1 . Machines Repaired . | . . . . . Machines Dismantled . | . . . . . Machines Sabotaged . | . . . . . Overloaded Fab Kills . | . . . . . Hacking | -11 -10 -10 -10 -8 --------- Run | Yrd Mat Min Sub Rec Machines Accessed 16 | . 11 . 2 3 Terminals 8 | . 8 . . . Fabricators . | . . . . . Repair Stations 1 | . 1 . . . Recycling Units 5 | . 2 . . 3 Scanalyzers . | . . . . . Garrison Access . | . . . . . Total Hacks 56 | . 40 . 4 12 Successful 38 | . 27 . 4 7 Failed 18 | . 13 . . 5 Catastrophic 1 | . 1 . . . Database Lockouts . | . . . . . Manual 30 | . 23 . . 7 Terminals 33 | . 33 . . . Fabricators . | . . . . . Repair Stations 1 | . 1 . . . Recycling Units 18 | . 6 . . 12 Scanalyzers . | . . . . . Garrison Access . | . . . . . Terminal Hacks 19 | . 15 . 4 . Record 3 | . . . 3 . Robot Analysis 2 | . 2 . . . Prototype ID Bank 1 | . 1 . . . Branch Access Points 1 | . 1 . . . Emergency Access Points 2 | . 2 . . . Terminal Index 1 | . 1 . . . Recycling Unit Index 1 | . 1 . . . Unreport Threat 1 | . 1 . . . Locate Traps 2 | . 2 . . . Hauler Manifests 1 | . 1 . . . Zone Layout 3 | . 3 . . . Proto ID Catalog 1 | . . . 1 . Fabricator Hacks . | . . . . . Repair Station Hacks . | . . . . . Recycling Unit Hacks 2 | . 1 . . 1 Retrieve Components 2 | . 1 . . 1 Scanalyzer . | . . . . . Garrison Access Hacks . | . . . . . Unauthorized Hacks 17 | . 11 . . 6 Terminals 8 | . 8 . . . Botnet 3 | . 3 . . . Skim 5 | . 5 . . . Fabricators . | . . . . . Repair Stations 1 | . 1 . . . Mechanics 1 | . 1 . . . Recycling Units 8 | . 2 . . 6 Monitor 1 | . . . . 1 Reject 1 | . . . . 1 Recyclers 1 | . . . . 1 Mask 1 | . . . . 1 Tunnel 4 | . 2 . . 2 Scanalyzers . | . . . . . Garrison Access . | . . . . . Data Cores Recovered . | . . . . . Used . | . . . . . Hacking Detections 14 | . 11 . . 3 Full Trace Events . | . . . . . Feedback Events . | . . . . . Feedback Blocked . | . . . . . Robot Schematics Acquired . | . . . . . Robots Built . | . . . . . Authchips . | . . . . . Time . | . . . . . Total Robot Build Rating . | . . . . . Part Schematics Acquired . | . . . . . Parts Built . | . . . . . Authchips . | . . . . . Time . | . . . . . Total Part Build Rating . | . . . . . Parts Repaired . | . . . . . Time . | . . . . . Parts Recycled . | . . . . . Recycled Matter . | . . . . . Retrieved Matter . | . . . . . Retrieved Components 5 | . 2 . . 3 Parts Scanalyzed . | . . . . . Part Schematics Acquired . | . . . . . Parts Damaged . | . . . . . Bothacking | -11 -10 -10 -10 -8 ------------ Run | Yrd Mat Min Sub Rec Used RIF Installer . | . . . . . Robots Hacked . | . . . . . Non-combat . | . . . . . Combat . | . . . . . Robot Hacks Applied . | . . . . . Relay Couplers Released . | . . . . . Fabnet Peak Effective % . | . . . . . Robots Rewired . | . . . . . Allies Hacked . | . . . . . Hacks Repelled . | . . . . . Allies | -11 -10 -10 -10 -8 -------- Run | Yrd Mat Min Sub Rec Total Allies 1 | . . 1 . . Largest Group 1 | . . 1 1 . Highest-Rated Group 31 | . . 31 31 . Highest-Rated Ally 31 | . . 31 31 . Total Orders . | . . . . . Ally Attacks 50 | . . 10 40 . Total Damage 801 | . . 149 652 . Kills 8 | . . . 8 . Allies Corrupted . | . . . . . Allies Melted . | . . . . . Intel | -11 -10 -10 -10 -8 ------- Run | Yrd Mat Min Sub Rec Active Infowar (turns) 8928 | 24 1063 1247 6510 84 Optics 548 | . 548 . . . Sensors 535 | . . 535 . . Terrain 1293 | 24 1063 206 . . Structural 7099 | . . 505 6510 84 Seismic 8926 | 23 1063 1246 6510 84 Robot Analysis Total 2 | . 2 . . . Derelict Logs Recovered 4 | . . 1 3 . Drone Launches . | . . . . . Drone Recoveries . | . . . . . Exploration | -11 -10 -10 -10 -8 ------------- Run | Yrd Mat Min Sub Rec Turns Passed 9014 | 110 1063 1247 6510 84 Spaces Moved 4245 | 50 458 698 2987 52 Core 7 | 7 . . . . Treads 4187 | 43 458 698 2987 1 Legs 51 | . . . . 51 Wheels . | . . . . . Hover . | . . . . . Flight . | . . . . . Fastest Speed 50 | 50 160 160 160 115 Average Speed 186 | 148 160 160 197 117 Slowest Speed 260 | 160 160 160 260 260 Overloaded Moves . | . . . . . Propulsion Burnouts . | . . . . . Robots Hopped . | . . . . . Potential Cave-ins . | . . . . . Cave-ins Triggered . | . . . . . Exploration Rate (%) 57 | 4 77 98 97 11 Regions Visited 4 Branch Regions 3 Pre-discovered Areas 5 | . 3 . . 2 Known Exits Taken 3 | . 1 1 1 . Unknown Exits Taken 1 | 1 . . . . Scrap Searched 15 | . . 1 14 . Spaces Dug 30 | . . . 30 . Terrain Destroyed 101 | . . . 101 . Melee . | . . . . . Projectile . | . . . . . AOE 101 | . . . 101 . Terrain Rammed . | . . . . . Walls Destroyed . | . . . . . Machines Disabled . | . . . . . Actions | -11 -10 -10 -10 -8 --------- Run | Yrd Mat Min Sub Rec Total 4987 | 74 700 778 3365 70 Wait 303 | 5 164 7 124 3 Move 4241 | 49 457 697 2986 52 Hop . | . . . . . Pick Up 57 | 7 9 5 35 1 Fast Attach 8 | . . . 8 . Attach 21 | 7 3 5 3 3 Detach 3 | . . 2 1 . Swap 23 | . 1 2 18 2 Drop 48 | . 4 7 32 5 Fire 182 | 6 45 28 103 . Melee 13 | . . . 9 4 Ram . | . . . . . Kick . | . . . . . Crush . | . . . . . Escape Stasis . | . . . . . Rewire . | . . . . . Trap 1 | . . . 1 . Miscellaneous 87 | . 17 25 45 . Route ------- -11/Scrapyard -10/Materials (discovered 6 exits: *Mat x3 / *Min x2 / *Sub) -10/Mines (discovered 3 exits: *Mat x2 / *Sub) -10/Subcaves (discovered 4 exits: *Mat x2 / *Rec / *Scr) -8/Recycling (discovered 1 exit: Scr) History --------- Turn | Location | Event 1 | -11/Scrapyard | Upgraded with Propulsion slot (x1) 1 | -11/Scrapyard | Upgraded with Utility slot (x2) 1 | -11/Scrapyard | Upgraded with Weapon slot (x1) 17 | -11/Scrapyard | Discovered new exit (range 15) 111 | -11/Scrapyard | Entered Materials 219 | -10/Materials | Identified exit to Mines 306 | -10/Materials | Build established: Mutant 603 | -10/Materials | Discovered new exit (range 18) 753 | -10/Materials | Reached level 2 835 | -10/Materials | Learned location of 2 exits from Subcaves 839 | -10/Materials | Discovered new exit (range 9) 848 | -10/Materials | Discovered new exit (range 13) 879 | -10/Materials | Identified exit to Subcaves 891 | -10/Materials | Learned location of 2 exits from Mines 975 | -10/Materials | Learned location of Mines (-8) 1005 | -10/Materials | Upgraded with Weapon slot (x1) 1024 | -10/Materials | Loaded intel: 18 trap records 1033 | -10/Materials | Identified exit to Materials 1052 | -10/Materials | Learned 4 Recycling zone layouts 1171 | -10/Materials | Learned 4 Subcaves zone layouts 1174 | -10/Materials | Entered Mines 1191 | -10/Mines | Assembled infested the area 1272 | -10/Mines | Discovered exit to Materials (range 3) 1311 | -10/Mines | Build established: Scavenger-Skirmisher 1373 | -10/Mines | Found a damaged Exp. Sensor Array with a note attached 1376 | -10/Mines | Found Prototype Device 1378 | -10/Mines | Identified Exp. Sensor Array 1435 | -10/Mines | Learned 2 Materials zone layouts 1679 | -10/Mines | Build established: Skirmisher 1714 | -10/Mines | Reached level 3 2052 | -10/Mines | Build established: Scavenger-Skirmisher 2070 | -10/Mines | Met a Derelict testing a Signal Generator 2077 | -10/Mines | Found Signal Generator 2421 | -10/Mines | Entered Subcaves 2421 | -10/Subcaves | Accompanied by 1 ally 2422 | -10/Subcaves | Approached by a straggling Scientist 2422 | -10/Subcaves | Identified exit to Materials 2423 | -10/Subcaves | Identified exit to Recycling 2423 | -10/Subcaves | Reached level 4 2781 | -10/Subcaves | A swath of the cavern ceiling suddenly collapsed 2806 | -10/Subcaves | Learned location of 2 exits from Materials 2824 | -10/Subcaves | A swath of the cavern ceiling suddenly collapsed 3032 | -10/Subcaves | Scientist uncovered a shortcut to Scraptown 3038 | -10/Subcaves | Identified exit to Scraptown 3411 | -10/Subcaves | Shifting Twisted Machinery released Lgt. Humpback 3421 | -10/Subcaves | Upgraded with Utility slot (x2) 3742 | -10/Subcaves | Disturbed a concealed Subdweller 4051 | -10/Subcaves | Build established: Subdweller-Skirmisher 4297 | -10/Subcaves | Learned 8 Materials zone layouts 4474 | -10/Subcaves | Shifting Twisted Machinery released Sub. Monowheel 4474 | -10/Subcaves | Shifting Twisted Machinery released Sub. Monowheel 4993 | -10/Subcaves | Visited Clippyterm 4998 | -10/Subcaves | Learned Factory garrison access intel 5654 | -10/Subcaves | Visited 4L-MR0's lab 5678 | -10/Subcaves | Found Arachnoskeleton 5814 | -10/Subcaves | Shifting Twisted Machinery released Flamer 5818 | -10/Subcaves | Shifting Twisted Machinery released Ripper 5975 | -10/Subcaves | Build established: Hauler-Assassin 7042 | -10/Subcaves | Disturbed a concealed Subdweller 7077 | -10/Subcaves | Disturbed a concealed Subdweller 7519 | -10/Subcaves | Build established: Hauler-Skirmisher 8331 | -10/Subcaves | Build established: Hauler-Assassin 8931 | -10/Subcaves | Entered Recycling 8933 | -8/Recycling | Reached level 5 8933 | -8/Recycling | Reached level 6 8934 | -8/Recycling | Upgraded with Propulsion slot (x1) 8934 | -8/Recycling | Upgraded with Utility slot (x1) 8937 | -8/Recycling | Attached Arachnoskeleton, gained temporary slots: Propulsion x3 9015 | -8/Recycling | Self-destructed Last Messages --------------- Recycler tracking enabled and active. >>Trojan(Monitor) Trojan loaded successfully. Testing... Monitoring response positive. >>Trojan(Mask) Trojan loaded successfully. Testing... Masking routine running. 09012_ Connecting with Recycling Unit... >>Retrieve(Components) Retrieving 3 components... Recoil Stabilizer Surge Thruster Com. Matter Pod >>Force(Tunnel) DISCOVERED[-1/Command] 09013_ Acquired Surge Thruster. 09015_ Dropped Surge Thruster. 09015_ Temporary Propulsion slot lost. Map ----- +----------------------------------------------------+ | ?????????????????????????????????????????????????? | | ?????????????????????????????????????????????????? | | ?????????????????????????????????????????????????? | | ?????????????????????????????????????????????????? | | ?????????????????????????????????????????????????? | | ?????????????????????????????????????????????????? | | ?????????????????????????????????????????????????? | | ?????????????????????????????????????????????????? | | ?????????????????????????????????????????????????? | | ?????????????????????????????????????????????????? | | ?????????????????????????????????????????????????? | | ?????????????????????????????#######?????????????? | | ?????????????????######????#########?????????????? | | ???############################"""##### ?????????? | | ???# #######"T"#######%#"Y"##### ?????????? | | ???#""" # =[! + ?????????? | | ???#""" # ! # ?????????? | | ???#""" # # ?????????? | | ???# + + ?????????? | | ???#""" # ######===##+#####/#####=# ?????????? | | ???#""" # ######= =## r ####%# ????????? | | ???#""" # #???####### """ ####=###????????? | | ???# # #???####### "Y"r ####* #######???? | | ?????????????????????####!! r ####!########???? | | ?????????????????????##"" #### ### ##???? | | ?????????????????????##"Y@ """"" #### ### ##???? | | ?????????????????????##"" """"" #### ### ##???? | | ?????????????????????#### """"" #### ##???? | | ?????????????????????#### ######## ##???? | | ???????????????????????"###+##+###?###### ##???? | | ???????????????????????"### ###?????## ##???? | | ???????????????????????????????????????## ##???? | | ??????????????????????????????????????### ## ??? | | ??????????????????????????????????????### ## ??? | | ??????????????????????????????????????## # ??? | | ??????????????????????????????????????## # ??? | | ??????????????????????????????????????## + ??? | | ??????????????????????????????????????## # ??? | | ??????????????????????????????????????## # ??? | | ??????????????????????????????????????### ## ??? | | ??????????????????????????????????????### ## ??? | | ???????????????????????????????????????## ##???? | | ???????????????????????????????????????## ##???? | | ??????????????????????????????????????? # ##???? | | ??????????????????????????????????????? + ##???? | | ??????????????????????????????????????? # ##???? | | ??????????????????????????????????????? # ##???? | | ???????????????????????????????????????## ##???? | | ???????????????????????????????????????## ##???? | | ????????????????????????????????????????? ?????? | +----------------------------------------------------+ Best States ------------- Heat Dissipation 43 Energy Generation 20 Energy Capacity 250 Matter Stores 300 Matter Capacity 300 Sight Range 18 Robot Scan Range 34 Terrain Scan Range 16 Terrain Scan Density 110 Armor Coverage 800 Resistance: KI 20 Resistance: TH 20 Resistance: EX 20 Resistance: EM 20 Resistance: I 20 Resistance: S 20 Resistance: P 20 Evasion (%) 55 Recoil Reduction 2 Offensive Hacking 15 Item Schematics ----------------- None Robot Schematics ------------------ None Fabricated ------------ Nothing Repaired ---------- Nothing Alien Tech Used ----------------- None Achievements -------------- None Challenges ------------ None RPGLIKE | -11 -10 -10 -10 -8 --------- Run | Yrd Mat Min Sub Rec Levels Raised 5 | . 1 1 1 2 XP Earned 12449 | 4000 2050 1550 2009 2840 XP Spent 11460 | 3925 1550 . 3010 2975 Upgrades 26 | 9 6 . 6 5 Propulsion Slot 2 | 1 . . . 1 Utility Slot 5 | 2 . . 2 1 Weapon Slot 2 | 1 1 . . . Heat Dissipation 3 | . . . 3 . Energy Generation 1 | . . . 1 . Inventory Capacity 3 | 3 . . . . Sensor Range 8 | 2 5 . . 1 Terrain Scan Density 1 | . . . . 1 Hack Attack % 1 | . . . . 1 Protomatter Created 646 | . 229 197 220 . Integrity Restored 1556 | . 286 505 765 . Core 1211 | . 226 396 589 . Parts 345 | . 60 109 176 . Protomatter Decayed 313 | . 92 38 183 . Game ------ Seed ShadeDirectedThrower Manual? 0 Play Time 01:10:48 Cumulative 199.3 hours Start 2025.06.18 @ 19:58:43 End 2025.06.19 @ 12:02:23 Sessions 3 Manual Loads 0 Difficulty Adventurer Special Mode Winter2019/RPGLIKE Game No. 47 Rogue 12 Adventurer 4 Explorer 31 Win Type - Total 4 Types 2/0/2/0/0/0/0/0/0/0 Lore% 52 Gallery% 63 Achievement% 70 Wizard Run 0 Options --------- Layout 0 ASCII 0 Keyboard 0 Movement Mouse Keybinds 0 Fullscreen 2 Font 24/Smallcaps Map View 76x50 Zoom Use 0% Tactical HUD 1 Map Filters NONE Filters NONE Steam 1 RUN: 33821c38-7f0a-4f08-b653-a533d075daf7